fUST/lending_fUST_20260128
["ID","MTS","AMOUNT","RATE_DAILY","PERIOD"]
[403781908,1769538638878,-500.0,0.00013699,2]
[403781910,1769538638888,-500.0,0.00013699,2]
[403781912,1769538638897,-500.0,0.00013699,2]
[403781914,1769538638907,-194.72932748,0.00013699,2]
[403781916,1769538638916,-500.0,0.00013699,2]
[403781918,1769538638927,-500.56709487,0.00013699,2]
[403781920,1769538638937,-501.93006265,0.00013699,2]
[403781922,1769538638946,-500.24926867,0.00013699,2]
[403781924,1769538638956,-526.45505483,0.00013699,2]
[403781926,1769538638964,-500.0,0.00013699,2]
[403781927,1769538638974,-165.58700471,0.00013699,2]
[403781929,1769538638984,-502.14185001,0.00013699,2]
[403781931,1769538638994,-500.0,0.00013699,2]
[403781933,1769538639004,-500.0,0.00013699,2]
[403781935,1769538639014,-299.9295039,0.00013699,2]
[403781937,1769538639023,-500.0,0.00013699,2]
[403781939,1769538639032,-500.0,0.00013699,2]
[403781941,1769538639042,-160.26500187,0.00013699,2]
[403781943,1769538639051,-500.0,0.00013699,2]
[403781945,1769538639063,-158.03248936,0.00013699,2]
[403781947,1769538639073,-500.0,0.00013699,2]
[403781948,1769538639082,-500.0,0.00013699,2]
[403781949,1769538639091,-500.0,0.00013699,2]
[403781950,1769538639100,-275.73146995,0.00013699,2]
[403781951,1769538639109,-166.79022655,0.00013821,2]
[403781952,1769538639119,-1000.0,0.00013821,2]
[403781953,1769538639128,-1000.0,0.00013821,2]
[403781954,1769538639138,-1000.0,0.00013821,2]
[403781955,1769538639147,-1000.0,0.00013821,2]
[403781956,1769538639156,-1000.0,0.00013821,2]
[403781957,1769538639165,-1000.0,0.00013821,2]
[403781958,1769538639174,-1000.0,0.00013821,2]
[403781959,1769538639183,-1000.0,0.00013821,2]
[403781960,1769538639193,-1000.0,0.00013821,2]
[403781961,1769538639202,-822.85276011,0.00013821,2]
[403781962,1769538639211,-500.0,0.00013821,2]
[403781963,1769538639220,-1000.0,0.00013821,2]
[403781964,1769538639229,-500.0,0.00013821,2]
[403781965,1769538639238,-218.18465353,0.00013821,2]
[403781966,1769538639247,-1000.0,0.00013821,2]
[403781967,1769538639256,-1000.0,0.00013821,2]
[403781968,1769538639265,-386.77278178,0.00013852,2]
[403781969,1769538639274,-1000.0,0.00014247,2]
[403781970,1769538639283,-348.473489,0.00014247,2]
[403781971,1769538639293,-610.42597811,0.00014247,2]
[403781972,1769538639304,-501.06198753,0.00014247,2]
[403781973,1769538639313,-474.23438198,0.00014247,2]
[403781974,1769538639321,-1000.0,0.00014247,2]
[403781975,1769538639330,-1000.0,0.00014247,2]
[403781976,1769538639339,-1000.0,0.00014247,2]
[403781977,1769538639348,-1000.0,0.00014247,2]
[403781978,1769538639357,-1117.40899688,0.00014247,2]
[403781979,1769538639366,-1000.0,0.00014247,2]
[403781980,1769538639375,-1001.21829847,0.00014247,2]
[403781981,1769538639384,-500.0,0.00014247,2]
[403781982,1769538639393,-1464.54701019,0.00014368,2]
[403781983,1769538639402,-1500.0,0.00014368,2]
[403781984,1769538639411,-500.0,0.00014368,2]
[403781985,1769538639419,-1500.0,0.00014368,2]
[403781986,1769538639428,-1000.0,0.00014368,2]
[403781987,1769538639438,-645.13012888,0.00014368,2]
[403781988,1769538639447,-1500.0,0.00014368,2]
[403781989,1769538639456,-500.0,0.00014368,2]
[403781990,1769538639465,-1000.0,0.00014368,2]
[403781991,1769538639474,-1500.0,0.00014368,2]
[403781992,1769538639484,-500.0,0.00014368,2]
[403781993,1769538639493,-1500.0,0.00014368,2]
[403781994,1769538639502,-864.0,0.00014629,2]
[403781995,1769538639512,-1500.0,0.00014795,2]
[403781996,1769538639521,-1500.0,0.00014795,2]
[403781997,1769538639531,-175.70742984,0.00014795,2]
[403781998,1769538639540,-500.0,0.00014795,2]
[403781999,1769538639550,-150.0,0.00014894,2]
[403782000,1769538639559,-2000.0,0.00014916,2]
[403782001,1769538639568,-500.0,0.00014916,2]
[403782002,1769538639577,-2000.0,0.00014916,2]
[403782003,1769538639586,-10000.0,0.00015342,2]
[403782005,1769538639596,-1500.0,0.00015342,2]
[403782007,1769538639605,-165.13470443,0.00015399,2]
[403782009,1769538639614,-704911.79885228,0.000154,2]
[403782011,1769538639623,-10000.0,0.00015442,2]
[403782013,1769538639632,-500.0,0.00015464,2]
[403782015,1769538639641,-445.77201968,0.00015852,2]
[403782017,1769538639651,-1000.0,0.00016092,2]
[403782019,1769538639660,-150.0,0.00016248,2]
[403782021,1769538639669,-200.0,0.00016438,2]
[403782023,1769538639678,-582.521614,0.00017252,2]
[403782026,1769538639688,-9516.08425155,0.000175,3]
[403782027,1769538639698,-1041.66666667,0.00017543,2]
[403782031,1769538639707,-210.22295055,0.000176,2]
[403782033,1769538639717,-169.2,0.00017602,2]
[403782035,1769538639726,-1000.0,0.00017701,2]
[403782039,1769538639745,-244.0,0.00017701,2]
[403782041,1769538639755,-504.77125758,0.00017852,2]
[403782044,1769538639764,-126034.16516033,0.00018,2]
[403782047,1769538639774,-729.0,0.0001855,2]
[403782050,1769538639783,-729.0,0.0001855,2]
[403782052,1769538639792,-320.0,0.0001887,2]
[403782055,1769538639802,-225.6,0.00018956,2]
[403782057,1769538639813,-53199.32032241,0.00018998,2]
[403782059,1769538639822,-10000.0,0.00019,2]
[403782061,1769538639833,-729.0,0.0001919,2]
[403782063,1769538639844,-6188.81,0.000192,2]
[403782065,1769538639853,-171.22,0.000192,2]
[403782067,1769538639863,-167.96,0.000192,2]
[403782069,1769538639874,-16820.15,0.000192,2]
[403782071,1769538639884,-293.92,0.000192,2]
[403782073,1769538639893,-151.0,0.000193,2]
[403782075,1769538639903,-729.0,0.0001936,2]
[403782077,1769538639915,-1000.0,0.00019471,2]
[403782079,1769538639924,-492.0,0.00019471,2]
[403782081,1769538639933,-729.0,0.00019498,2]
[403782083,1769538639943,-417717.24356052,0.000196,2]
[403782085,1769538639952,-729.0,0.00019727,2]
[403782088,1769538639962,-500.0,0.00019768,2]
[403782090,1769538639971,-563.77049548,0.00019852,2]
[403782092,1769538639982,-9583.13292003,0.000199,2]
[403782094,1769538639992,-19436.17124308,0.0002,3]
[403782096,1769538640002,-1305360.10851605,0.0002,2]
[403782098,1769538640017,-16094.85708563,0.0002,2]
[403782100,1769538640029,-2920.67279896,0.0002,2]
[403782103,1769538640040,-6554.9671223,0.0002,2]
[403782105,1769538640051,-511.44105851,0.0002,2]
[403782107,1769538640063,-525.32961644,0.0002,2]
[403782111,1769538640092,-1374.81438009,0.0002,2]
[403782138,1769538640334,-485.7861323,0.0002,2]
[403782141,1769538640345,-18025.83479233,0.0002,2]
[403782143,1769538640356,-1968.82029889,0.0002,2]
[403782482,1769538643255,-1632.63,0.0002,2]
[403782484,1769538643267,-1759.32282093,0.0002,2]
[403782490,1769538643308,-355.68937432,0.0002,2]
[403782605,1769538646132,-453.0,0.0002,2]
[403782606,1769538646144,-147385.04496538,0.0002,2]
[403782607,1769538646188,-6237.11498842,0.0002,2]
[403782608,1769538646199,-4044.40435005,0.0002,2]
[403782616,1769538741489,2985.95,0.00011753,2]
[403782617,1769538744906,-1326.29037686,0.00011753,2]
[403782618,1769538744955,-10000.01,0.00011753,2]
[403782619,1769538744969,-10000.01,0.00011753,2]
[403782620,1769538744996,-10000.01,0.00011753,2]
[403782621,1769538745094,-10000.01,0.00011753,2]
[403782622,1769538745206,-10000.01,0.00011753,2]
[403782623,1769538746879,-10000.01,0.00011753,2]
[403782624,1769538747005,-10000.01,0.00011753,2]
[403782625,1769538747111,-10000.01,0.00011753,2]
[403782626,1769538747217,-10000.01,0.00011753,2]
[403782627,1769538753713,150.0,0.00010622,2]
[403782628,1769538759221,-150.0,0.00011588,2]
[403782629,1769538831343,150.0,9.057e-05,2]
[403782630,1769538831777,150.0,9.88e-05,2]
[403782631,1769538832223,152.02,0.00010704,2]
[403782632,1769538832632,202.7,0.00011527,2]
[403782634,1769538911545,150.0,9.706e-05,2]
[403782635,1769538912109,150.0,0.00010589,2]
[403782636,1769538912555,205.85,0.00011471,2]
[403782637,1769538922128,150.0,0.00030137,120]
[403782638,1769538957258,-300.0,0.00011752,2]
[403782639,1769538957288,-324.13838441,0.00011752,2]
[403782640,1769538957397,-7621.74484677,0.00011753,2]
[403782641,1769538957493,-10000.01,0.00011753,2]
[403782642,1769538966388,-10000.01,0.00011753,2]
[403782643,1769538966481,-10000.01,0.00011753,2]
[403782644,1769538989160,291.79858537,0.000284,120]
[403782645,1769538989181,208.20141463,0.000284,120]
[403782646,1769538989918,230.03,9.09e-05,2]
[403782647,1769538990002,291.79858537,0.000284,120]
[403782648,1769538990027,208.20141463,0.000284,120]
[403782649,1769538990318,460.07,9.917e-05,2]
[403782650,1769538990733,690.1,0.00010743,2]
[403782651,1769538990820,291.79858537,0.000284,120]
[403782652,1769538990842,208.20141463,0.000284,120]
[403782653,1769538991769,291.79858537,0.000284,120]
[403782654,1769538991791,208.20141463,0.000284,120]
[403782655,1769538992519,291.79858537,0.000284,120]
[403782656,1769538992541,208.20141463,0.000284,120]
[403782657,1769538993381,291.79858537,0.000284,120]
[403782658,1769538993403,208.20141463,0.000284,120]
[403782659,1769539000144,-920.14,0.00011569,2]
[403782660,1769539060279,291.79858537,0.000284,120]
[403782661,1769539060300,208.20141463,0.000284,120]
[403782662,1769539061099,291.79858537,0.000284,120]
[403782663,1769539061120,208.20141463,0.000284,120]
[403782664,1769539061918,291.79858537,0.000284,120]
[403782665,1769539061946,208.20141463,0.000284,120]
[403782666,1769539062734,500.0,0.000284,120]
[403782667,1769539063583,500.0,0.000284,120]
[403782668,1769539064808,500.0,0.000284,120]
[403782669,1769539065632,500.0,0.000284,120]
[403782670,1769539066572,500.0,0.000284,120]
[403782671,1769539067246,500.0,0.000284,120]
[403782672,1769539068054,500.0,0.000284,120]
[403782673,1769539068900,500.0,0.000284,120]
[403782674,1769539069668,500.0,0.000284,120]
[403782675,1769539070465,500.0,0.000284,120]
[403782676,1769539071233,500.0,0.000284,120]
[403782677,1769539072077,500.0,0.000284,120]
[403782678,1769539072899,500.0,0.000284,120]
[403782679,1769539073615,302.51,9.119e-05,2]
[403782680,1769539073716,500.0,0.000284,120]
[403782681,1769539074057,605.03,9.948e-05,2]
[403782682,1769539074482,907.54,0.00010777,2]
[403782683,1769539074534,500.0,0.000284,120]
[403782684,1769539075680,500.0,0.000284,120]
[403782685,1769539076435,500.0,0.000284,120]
[403782686,1769539077238,500.0,0.000284,120]
[403782687,1769539077277,-1210.05,0.00011606,2]
[403782688,1769539078850,500.0,0.000284,120]
[403782689,1769539079665,500.0,0.000284,120]
[403782690,1769539080486,500.0,0.000284,120]
[403782691,1769539081702,500.0,0.000284,120]
[403782692,1769539082359,500.0,0.000284,120]
[403782693,1769539083182,500.0,0.000284,120]
[403782694,1769539083994,500.0,0.000284,120]
[403782695,1769539084810,500.0,0.000284,120]
[403782696,1769539085624,500.0,0.000284,120]
[403782697,1769539086431,500.0,0.000284,120]
[403782698,1769539087268,500.0,0.000284,120]
[403782699,1769539088088,500.0,0.000284,120]
[403782700,1769539088914,500.0,0.000284,120]
[403782701,1769539089733,500.0,0.000284,120]
[403782702,1769539090560,500.0,0.000284,120]
[403782703,1769539091384,500.0,0.000284,120]
[403782704,1769539092207,500.0,0.000284,120]
[403782705,1769539093187,500.0,0.000284,120]
[403782706,1769539094007,500.0,0.000284,120]
[403782707,1769539094778,500.0,0.000284,120]
[403782708,1769539095552,500.0,0.000284,120]
[403782709,1769539096375,500.0,0.000284,120]
[403782710,1769539097263,500.0,0.000284,120]
[403782711,1769539097975,500.0,0.000284,120]
[403782712,1769539098798,500.0,0.000284,120]
[403782713,1769539099606,500.0,0.000284,120]
[403782714,1769539100422,500.0,0.000284,120]
[403782715,1769539101240,528.48,0.000284,120]
[403782718,1769539167763,500.0,0.000284,120]
[403782746,1769539654155,-404.65,0.000117,2]
[403782747,1769539654176,-300.0,0.00011749,2]
[403782748,1769539654204,-500.59293817,0.0001175,2]
[403782759,1769539801202,300.0,0.00011651,2]
[403782760,1769539801933,300.0,0.00011651,2]
[403782761,1769539802142,300.0,0.00011651,2]
[403782762,1769539806633,1200.0,0.00011651,2]
[403782763,1769539812784,-4704.73,0.00011652,2]
[403782764,1769539812831,-10000.01,0.00011652,2]
[403782765,1769539818979,-2126.68512283,0.00011652,2]
[403782766,1769539819004,-5746.63975434,0.00011652,2]
[403782767,1769539819088,-584.0,0.00011652,2]
[403782778,1769539832113,-5000.0,0.00011631,2]
[403782779,1769539832123,-473.30253903,0.00011749,2]
[403782780,1769539832132,-334.82343253,0.00011749,2]
[403782781,1769539832141,-500.0,0.00011749,2]
[403782782,1769539832151,-500.0,0.00011749,2]
[403782783,1769539832161,-500.0,0.00011749,2]
[403782784,1769539832170,-500.0,0.00011749,2]
[403782785,1769539832179,-529.22141632,0.00011749,2]
[403782786,1769539832188,-500.0,0.00011749,2]
[403782787,1769539832199,-335.86906018,0.00011749,2]
[403782788,1769539832208,-500.0,0.00011749,2]
[403782789,1769539832218,-500.0,0.00011749,2]
[403782790,1769539832227,-529.22141632,0.00011749,2]
[403782791,1769539832237,-500.0,0.00011749,2]
[403782792,1769539832246,-500.0,0.00011749,2]
[403782793,1769539832257,-500.0,0.00011749,2]
[403782794,1769539832267,-529.22141632,0.00011749,2]
[403782795,1769539832276,-500.0,0.00011749,2]
[403782796,1769539832287,-500.0,0.00011749,2]
[403782797,1769539832298,-500.0,0.00011749,2]
[403782798,1769539832308,-500.0,0.00011749,2]
[403782799,1769539832318,-529.22141632,0.00011749,2]
[403782800,1769539832329,-500.0,0.00011749,2]
[403782801,1769539832339,-500.0,0.00011749,2]
[403782802,1769539832349,-529.22141632,0.00011749,2]
[403782803,1769539832358,-500.0,0.00011749,2]
[403782804,1769539832367,-529.22141632,0.00011749,2]
[403782805,1769539832376,-500.0,0.00011749,2]
[403782806,1769539832386,-500.0,0.00011749,2]
[403782807,1769539832397,-506.04721086,0.00011749,2]
[403782808,1769539832406,-529.22141632,0.00011749,2]
[403782809,1769539832415,-500.0,0.00011749,2]
[403782810,1769539832426,-130.99837302,0.00011749,2]
[403782811,1769539838180,-369.00162698,0.00011749,2]
[403782812,1769539838189,-371.19766291,0.00011749,2]
[403782813,1769539838284,-158.02375341,0.00011749,2]
[403782814,1769539838294,-500.0,0.00011749,2]
[403782815,1769539838305,-500.0,0.00011749,2]
[403782816,1769539838315,-529.22141632,0.00011749,2]
[403782817,1769539838326,-500.0,0.00011749,2]
[403782818,1769539838335,-500.0,0.00011749,2]
[403782819,1769539838344,-500.0,0.00011749,2]
[403782820,1769539838353,-529.22141632,0.00011749,2]
[403782821,1769539838363,-500.0,0.00011749,2]
[403782822,1769539838372,-529.22141632,0.00011749,2]
[403782823,1769539838381,-500.0,0.00011749,2]
[403782824,1769539838391,-184.08888379,0.00011749,2]
[403782825,1769539838400,-529.22141632,0.00011749,2]
[403782826,1769539838410,-529.22141632,0.00011749,2]
[403782827,1769539838419,-500.0,0.00011749,2]
[403782828,1769539838428,-500.0,0.00011749,2]
[403782829,1769539838437,-529.22141632,0.00011749,2]
[403782830,1769539838446,-500.0,0.00011749,2]
[403782831,1769539838456,-500.0,0.00011749,2]
[403782833,1769539838465,-529.22141632,0.00011749,2]
[403782835,1769539838475,-529.22141632,0.00011749,2]
[403782837,1769539838484,-500.0,0.00011749,2]
[403782838,1769539838494,-529.22141632,0.00011749,2]
[403782840,1769539838503,-500.0,0.00011749,2]
[403782842,1769539838512,-500.0,0.00011749,2]
[403782843,1769539838521,-500.0,0.00011749,2]
[403782844,1769539838531,-529.22141632,0.00011749,2]
[403782845,1769539838540,-500.0,0.00011749,2]
[403782846,1769539838549,-500.0,0.00011749,2]
[403782847,1769539838559,-529.22141632,0.00011749,2]
[403782848,1769539838568,-500.0,0.00011749,2]
[403782849,1769539838578,-529.22141632,0.00011749,2]
[403782850,1769539838587,-500.0,0.00011749,2]
[403782851,1769539838596,-529.22141632,0.00011749,2]
[403782852,1769539838605,-500.0,0.00011749,2]
[403782853,1769539838615,-500.0,0.00011749,2]
[403782854,1769539838624,-529.22141632,0.00011749,2]
[403782855,1769539838633,-500.0,0.00011749,2]
[403782856,1769539838643,-529.22141632,0.00011749,2]
[403782857,1769539838652,-500.0,0.00011749,2]
[403782858,1769539838662,-500.0,0.00011749,2]
[403782859,1769539838671,-500.0,0.00011749,2]
[403782860,1769539838680,-500.0,0.00011749,2]
[403782861,1769539838690,-529.22141632,0.00011749,2]
[403782862,1769539838700,-301.78033272,0.00011749,2]
[403782863,1769539838710,-529.22141632,0.00011749,2]
[403782864,1769539838719,-500.0,0.00011749,2]
[403782865,1769539838728,-529.22141632,0.00011749,2]
[403782866,1769539838737,-500.0,0.00011749,2]
[403782867,1769539838746,-529.22141632,0.00011749,2]
[403782868,1769539838756,-500.0,0.00011749,2]
[403782869,1769539838765,-500.0,0.00011749,2]
[403782870,1769539838775,-529.22141632,0.00011749,2]
[403782871,1769539838784,-500.0,0.00011749,2]
[403782872,1769539838794,-529.22141632,0.00011749,2]
[403782873,1769539838803,-500.0,0.00011749,2]
[403782874,1769539838812,-529.22141632,0.00011749,2]
[403782875,1769539838822,-500.0,0.00011749,2]
[403782876,1769539838831,-529.22141632,0.00011749,2]
[403782877,1769539838841,-500.0,0.00011749,2]
[403782878,1769539838851,-529.22141632,0.00011749,2]
[403782879,1769539838860,-500.0,0.00011749,2]
[403782880,1769539838869,-529.22141632,0.00011749,2]
[403782881,1769539838878,-500.0,0.00011749,2]
[403782882,1769539838887,-529.22141632,0.00011749,2]
[403782883,1769539838897,-500.0,0.00011749,2]
[403782884,1769539838906,-529.22141632,0.00011749,2]
[403782885,1769539838916,-500.0,0.00011749,2]
[403782886,1769539838926,-500.0,0.00011749,2]
[403782887,1769539838935,-500.0,0.00011749,2]
[403782888,1769539838945,-500.0,0.00011749,2]
[403782889,1769539838955,-500.0,0.00011749,2]
[403782890,1769539838964,-500.0,0.00011749,2]
[403782891,1769539838973,-500.0,0.00011749,2]
[403782892,1769539838982,-529.22141632,0.00011749,2]
[403782893,1769539838991,-500.0,0.00011749,2]
[403782894,1769539839001,-529.22141632,0.00011749,2]
[403782895,1769539839010,-500.0,0.00011749,2]
[403782896,1769539839020,-529.22141632,0.00011749,2]
[403782897,1769539839029,-529.22141632,0.00011749,2]
[403782898,1769539839039,-529.22141632,0.00011749,2]
[403782899,1769539839048,-529.22141632,0.00011749,2]
[403782900,1769539839058,-529.22141632,0.00011749,2]
[403782901,1769539839068,-471.34296113,0.00011749,2]
[403782902,1769539839081,-57.87845519,0.00011749,2]
[403782903,1769539839091,-529.22141632,0.00011749,2]
[403782904,1769539839100,-529.22141632,0.00011749,2]
[403782905,1769539839109,-529.22141632,0.00011749,2]
[403782906,1769539839120,-529.22141632,0.00011749,2]
[403782907,1769539839130,-529.22141632,0.00011749,2]
[403782908,1769539839139,-529.22141632,0.00011749,2]
[403782909,1769539839148,-529.22141632,0.00011749,2]
[403782910,1769539839158,-529.22141632,0.00011749,2]
[403782911,1769539839168,-529.22141632,0.00011749,2]
[403782912,1769539839177,-529.22141632,0.00011749,2]
[403782913,1769539839187,-529.22141632,0.00011749,2]
[403782914,1769539839196,-529.22141632,0.00011749,2]
[403782915,1769539839205,-500.0,0.00011749,2]
[403782916,1769539839215,-500.0,0.00011749,2]
[403782917,1769539839224,-500.0,0.00011749,2]
[403782918,1769539839233,-500.0,0.00011749,2]
[403782919,1769539839243,-500.0,0.00011749,2]
[403782920,1769539839252,-500.0,0.00011749,2]
[403782921,1769539839265,-500.0,0.00011749,2]
[403782922,1769539839274,-500.0,0.00011749,2]
[403782923,1769539839283,-500.0,0.00011749,2]
[403782924,1769539839293,-500.0,0.00011749,2]
[403782925,1769539839303,-154.14898327,0.00011749,2]
[403782926,1769539839315,-500.0,0.00011749,2]
[403782927,1769539839324,-500.0,0.00011749,2]
[403782928,1769539839334,-590.44426729,0.00011749,2]
[403782929,1769539839343,-590.44426729,0.00011749,2]
[403782930,1769539839353,-590.44426729,0.00011749,2]
[403782931,1769539839362,-590.44426729,0.00011749,2]
[403782932,1769539839371,-590.44426729,0.00011749,2]
[403782933,1769539839380,-590.44426729,0.00011749,2]
[403782934,1769539839389,-590.44426729,0.00011749,2]
[403782935,1769539839399,-590.44426729,0.00011749,2]
[403782936,1769539839408,-590.44426729,0.00011749,2]
[403782937,1769539839417,-590.44426729,0.00011749,2]
[403782938,1769539839426,-590.44426729,0.00011749,2]
[403782939,1769539839437,-590.44426729,0.00011749,2]
[403782940,1769539839446,-590.44426729,0.00011749,2]
[403782941,1769539839456,-590.44426729,0.00011749,2]
[403782942,1769539839466,-590.44426729,0.00011749,2]
[403782943,1769539839475,-590.44426729,0.00011749,2]
[403782944,1769539839485,-590.44426729,0.00011749,2]
[403782945,1769539839497,-590.44426729,0.00011749,2]
[403782946,1769539839506,-590.44426729,0.00011749,2]
[403782947,1769539839517,-590.44426729,0.00011749,2]
[403782948,1769539839526,-590.44426729,0.00011749,2]
[403782949,1769539839536,-590.44426729,0.00011749,2]
[403782950,1769539839545,-590.44426729,0.00011749,2]
[403782951,1769539839554,-590.44426729,0.00011749,2]
[403782952,1769539839568,-590.44426729,0.00011749,2]
[403782953,1769539839577,-590.44426729,0.00011749,2]
[403782954,1769539839586,-590.44426729,0.00011749,2]
[403782955,1769539839596,-590.44426729,0.00011749,2]
[403782956,1769539839605,-590.44426729,0.00011749,2]
[403782957,1769539839615,-590.44426729,0.00011749,2]
[403782958,1769539839624,-300.0,0.00011749,2]
[403782959,1769539839633,-155.0,0.00011749,2]
[403782960,1769539839644,-20000.02,0.0001175,2]
[403782961,1769539839653,-369.62670757,0.0001175,2]
[403782962,1769539839663,-500.0,0.00011752,2]
[403782963,1769539839672,-218.66942558,0.00011887,2]
[403782964,1769539839682,-300.0,0.00011987,2]
[403782965,1769539839692,-300.0,0.00011987,2]
[403782966,1769539839702,-300.0,0.00011987,2]
[403782967,1769539839714,-300.0,0.00011987,2]
[403782968,1769539839723,-300.0,0.00011987,2]
[403782969,1769539839735,-300.0,0.00011987,2]
[403782970,1769539839745,-300.0,0.00011987,2]
[403782971,1769539839755,-300.0,0.00011987,2]
[403782972,1769539839764,-300.0,0.00011987,2]
[403782973,1769539839774,-300.0,0.00011987,2]
[403782974,1769539839783,-300.0,0.00011987,2]
[403782975,1769539839793,-300.0,0.00011987,2]
[403782976,1769539839803,-300.0,0.00011987,2]
[403782977,1769539839812,-300.0,0.00011987,2]
[403782978,1769539839822,-300.0,0.00011987,2]
[403782979,1769539839832,-600.0,0.00011987,2]
[403782980,1769539839841,-500.0,0.00012026,2]
[403782981,1769539839851,-151.0,0.000122,2]
[403782982,1769539839860,-541.43191332,0.000123,2]
[403782983,1769539839870,-151.0,0.000126,2]
[403782984,1769539839879,-420.0,0.00012794,2]
[403782985,1769539839888,-151.0,0.00013,2]
[403782986,1769539839897,-720.0,0.00013186,2]
[403782988,1769539839906,-500.0,0.00013273,2]
[403782990,1769539839915,-500.0,0.00013273,2]
[403782992,1769539839924,-500.0,0.00013273,2]
[403782994,1769539839933,-500.0,0.00013273,2]
[403782996,1769539839942,-500.0,0.00013273,2]
[403782998,1769539839952,-622.96707627,0.00013273,2]
[403783000,1769539839961,-500.0,0.00013273,2]
[403783002,1769539839970,-500.0,0.00013273,2]
[403783004,1769539839979,-500.0,0.00013273,2]
[403783006,1769539839988,-500.0,0.00013273,2]
[403783008,1769539839997,-500.0,0.00013273,2]
[403783010,1769539840006,-500.0,0.00013273,2]
[403783012,1769539840015,-500.0,0.00013273,2]
[403783014,1769539840024,-500.0,0.00013273,2]
[403783016,1769539840033,-500.0,0.00013273,2]
[403783018,1769539840042,-166.79022655,0.00013273,2]
[403783019,1769539840051,-284.04326702,0.00013273,2]
[403783021,1769539840060,-500.0,0.00013273,2]
[403783023,1769539840069,-500.0,0.00013273,2]
[403783025,1769539840078,-500.0,0.00013273,2]
[403783027,1769539840088,-302.08825533,0.00013273,2]
[403783029,1769539840097,-500.0,0.00013273,2]
[403783031,1769539840106,-500.0,0.00013273,2]
[403783033,1769539840115,-500.0,0.00013273,2]
[403783035,1769539840124,-500.0,0.00013273,2]
[403783037,1769539840133,-500.0,0.00013273,2]
[403783039,1769539840142,-500.0,0.00013273,2]
[403783041,1769539840151,-500.0,0.00013273,2]
[403783043,1769539840160,-500.0,0.00013273,2]
[403783045,1769539840170,-500.0,0.00013273,2]
[403783047,1769539840178,-500.0,0.00013273,2]
[403783049,1769539840187,-500.0,0.00013273,2]
[403783051,1769539840196,-500.0,0.00013273,2]
[403783053,1769539840205,-151.0,0.000134,2]
[403783055,1769539840213,-151.0,0.000136,2]
[403783057,1769539840222,-201.23226476,0.00013673,2]
[403783059,1769539840231,-300.0,0.00013673,2]
[403783061,1769539840240,-500.0,0.00013698,2]
[403783063,1769539840249,-500.0,0.00013698,2]
[403783065,1769539840259,-500.0,0.00013698,2]
[403783067,1769539840270,-500.0,0.00013698,2]
[403783069,1769539840279,-500.0,0.00013698,2]
[403783071,1769539840288,-500.0,0.00013698,2]
[403783073,1769539840297,-694.17,0.00013698,2]
[403783074,1769539840306,-694.17,0.00013698,2]
[403783077,1769539840316,-694.17,0.00013698,2]
[403783078,1769539840326,-694.17,0.00013698,2]
[403783080,1769539840336,-694.17,0.00013698,2]
[403783082,1769539840345,-694.17,0.00013698,2]